Cogmind - Beta 13 @@@ ROGUE MODE // 2024.04.17 @ 22:04:01 Player: Michael Result: Destroyed by Y-45 Defender with Beam Rifle Performance ------------- Evolutions (0) 0 Regions Visited (2) 400 Robots Destroyed (27) 135 Value Destroyed (765) 765 Prototype IDs (10) 200 Alien Tech Used (0) 0 Bonus (0) 0 TOTAL SCORE: 1500 Bonus ------- None Cogmind --------- Core Integrity 0/250 Matter 152/300 Energy 250/250 System Corruption 0% Temperature Cool (9) Movement Rolling (135) Ox3 Location -10/Subcaves Parts ------- > --- POWER (1) -------- Ion Engine > --- PROPULSION (2) --- Armored Wheel Armored Wheel > --- UTILITY (2) ------ Huge Storage Unit Gun Armor > --- WEAPON (2+1) ----- Mini Grenade Launcher Mini Grenade Launcher Flamer (+) > --- INVENTORY (25) --- Ion Engine Ion Engine Ion Engine Light Treads Light Treads Light Treads Wheel Wheel Wheel Armored Wheel Heat Sink Small Storage Unit Humpback High-capacity Matter Pod (200) Structural Scanner Improved Terrain Scanner Salvage Targeting Computer Salvage Targeting Computer Makeshift Light Armor Plating Makeshift Hacking Suite Autogun Battle Rifle Battle Cannon Flamer Peak State ------------ > --- POWER ------------ Ion Engine > --- PROPULSION ------- Armored Wheel Armored Wheel > --- UTILITY ---------- Huge Storage Unit Gun Armor > --- WEAPON ----------- Autogun Mini Grenade Launcher Mini Grenade Launcher Flamer > --- INVENTORY -------- Ion Engine Ion Engine Ion Engine Ion Engine Light Treads Light Treads Light Treads Wheel Wheel Armored Wheel Armored Wheel Heat Sink Small Storage Unit High-capacity Matter Pod Structural Scanner Improved Terrain Scanner Salvage Targeting Computer Salvage Targeting Computer Medium Armor Plating Makeshift Light Armor Plating Makeshift Hacking Suite Battle Cannon Mini Grenade Launcher Flamer [Rating: 27] Favorites ----------- Power Ion Engine Engine Ion Engine Propulsion Armored Wheel Treads Light Treads Wheel Armored Wheel Utility Huge Storage Unit Storage Huge Storage Unit Protection Gun Armor Weapon Autogun Energy Gun Small Laser Ballistic Gun Autogun Ballistic Cannon Battle Cannon Launcher Mini Grenade Launcher Special Weapon Flamer Build | -11 -10 -10 ------- Run | Yrd Mat Sub Slots Evolved . | . . . Power . | . . . Propulsion . | . . . Utility . | . . . Weapon . | . . . Parts Attached 37 | 6 16 15 Power 4 | 1 1 2 Engine 4 | 1 1 2 Core . | . . . Reactor . | . . . Propulsion 11 | 2 8 1 Treads 2 | . 2 . Leg . | . . . Wheel 9 | 2 6 1 Hover . | . . . Flight . | . . . Utility 5 | 1 2 2 Device . | . . . Storage 3 | 1 2 . Processor . | . . . Hackware . | . . . Protection 2 | . . 2 Artifact . | . . . Weapon 17 | 2 5 10 Energy Gun 3 | 1 2 . Energy Cannon . | . . . Ballistic Gun 4 | 1 2 1 Ballistic Cannon 2 | . . 2 Launcher 5 | . . 5 Special Weapon 3 | . 1 2 Impact Weapon . | . . . Slashing Weapon . | . . . Piercing Weapon . | . . . Special Melee Weapon . | . . . Unidentified Prototypes . | . . . Parts Lost 5 | . 2 3 Power . | . . . Propulsion 2 | . 1 1 Utility . | . . . Weapon 3 | . 1 2 Highest Loss Streak 2 | . 1 2 To Critical Strikes . | . . . Average Slot Usage (%) 97 | . 96 98 Engine 12 | . 14 12 Treads 1 | . 5 . Wheel 23 | . 21 24 Storage 17 | . 27 12 Protection 7 | . . 11 Energy Gun 3 | . 11 . Ballistic Gun 10 | . 12 10 Ballistic Cannon 3 | . . 5 Launcher 5 | . . 7 Special Weapon 9 | . 1 12 Naked Turns . | . . . Heaviest Build 98 | 10 91 98 Greatest Support 40 | 26 40 24 Greatest Overweight (x) 8 | 1 8 7 Average Overweight (x) 3 | . 2 3 Largest Inventory Capacity 25 | 8 25 25 Average Capacity 24 | 7 24 25 Most Carried 25 | 6 25 25 Average Carried 21 | 3 16 24 Final Capacity 25 | 8 25 25 Final Carried 25 | 6 25 25 Class Distribution -------------------- 52% | Gunner 47% | Mutant Dominant Class ---------------- Mutant | -10/Materials Gunner | -10/Subcaves Resources | -11 -10 -10 ----------- Run | Yrd Mat Sub Matter Collected 1177 | 194 458 525 Remotely . | . . . Salvage Created 875 | . 494 381 Parts 39 | . 20 19 Haulers Intercepted 1 | . 1 . Recyclers Shooed 1 | . 1 . Parts Field Recycled . | . . . Retrieved Matter . | . . . Parts Self-Destructed 9 | . . 9 Prevented . | . . . Kills | -11 -10 -10 ------- Run | Yrd Mat Sub Combat Hostiles Destroyed 22 | . 8 14 Guns 11 | . 8 3 Cannons 3 | . . 3 AOE 8 | . . 8 Classes Destroyed 7 | . 6 1 Worker 1 | . 1 . Tunneler 1 | . 1 . Hauler 1 | . 1 . Recycler 2 | . 2 . Swarmer 4 | . 3 1 Grunt 5 | . 5 . Subdweller 13 | . . 13 Best Kill Streak 5 | . 4 5 Combat Bots Only 5 | . 3 5 Max Kills in Single Turn 2 | . 2 2 Gunslinging . | . . . Exploded 2 | . . 2 Melee . | . . . Uniques/NPCs Destroyed . | . . . Combat | -11 -10 -10 -------- Run | Yrd Mat Sub Hostile Shots Fired 110 | . 45 65 Missed 37 | . 13 24 Damage Taken 1397 | . 370 1027 Core 252 | . 35 217 Absorbed by Shields . | . . . Regen/Repaired (Parts) 10 | . 10 . Core Remaining (%) 100 | 100 . . Volleys Fired 132 | . 47 85 Largest 4 | . 2 4 Hottest 223 | . 63 223 Shots Fired 212 | . 72 140 Gun 114 | . 72 42 Cannon 14 | . . 14 Launcher 30 | . . 30 Special 54 | . . 54 Kinetic 95 | . 39 56 Thermal 87 | . 33 54 Explosive 30 | . . 30 Electromagnetic . | . . . Robot Hit Streak 12 | . 9 12 Robot Miss Streak 3 | . 3 3 Penetration Max . | . . . Secondary Targets . | . . . Shots Hit Robots 104 | . 49 55 Core Hits 57 | . 25 32 Critical Kills . | . . . Critical Parts Destroyed 1 | . 1 . Critical Strikes 2 | . 1 1 Burn 1 | . . 1 Destroy 1 | . 1 . Melee Attacks . | . . . Impact . | . . . Slashing . | . . . Piercing . | . . . Sneak Attacks . | . . . Combat Hostiles . | . . . Follow-up Attacks . | . . . Damage Inflicted 2833 | . 497 2336 Guns 780 | . 479 301 Cannons 122 | . . 122 Explosions 1720 | . . 1720 Melee . | . . . Ramming 18 | . 18 . Kinetic 646 | . 223 423 Thermal 449 | . 256 193 Explosive 1720 | . . 1720 Electromagnetic . | . . . Impact . | . . . Slashing . | . . . Piercing . | . . . Highest Corruption . | . . . Average Corruption . | . . . Corruption Purged . | . . . Corruption Blocked . | . . . Overload Shots . | . . . Overflow Damage 2 | . . 2 Projectiles . | . . . Explosions 2 | . . 2 Melee . | . . . Knockbacks 1 | . . 1 Impact . | . . . Kinetic 1 | . . 1 Secondary . | . . . Self-Inflicted Damage 128 | . . 128 Shots 5 | . . 5 Rammed 1 | . 1 . Targets Rammed 1 | . 1 . Kicked . | . . . Crushed . | . . . Highest Temperature 65 | . 65 32 Average Temperature 20 | . 21 11 Received Heat Transfer 261 | . 210 51 Siege Activations . | . . . Robots Corrupted . | . . . Combat Hostiles . | . . . Parts Fried . | . . . Impact Corruptions . | . . . Robots Melted . | . . . Combat Hostiles . | . . . Parts Melted . | . . . Heat Transferred 1680 | . 600 1080 Parts Sabotaged . | . . . Parts Stolen . | . . . Parts Stripped . | . . . Power Chain Reactions . | . . . Alert | -11 -10 -10 ------- Run | Yrd Mat Sub Peak Influence 195 | . 195 . Initial . | . . . Average 46 | . 49 . Maximum Alert Level . | . . . Low Security (%) 100 | 100 100 . Level 1 . | . . . Level 2 . | . . . Level 3 . | . . . Level 4 . | . . . Level 5 . | . . . High Security . | . . . Max Security . | . . . Squads Dispatched 2 | . 2 . Investigation . | . . . Extermination . | . . . Reinforcement 2 | . 2 . Assault . | . . . Garrison . | . . . Intercept . | . . . Searches Triggered . | . . . Construction Impeded . | . . . Haulers Reinforced . | . . . Active Scanning Responses . | . . . Cargo Convoy Interrupts . | . . . Stealth | -11 -10 -10 --------- Run | Yrd Mat Sub Distress Signals 2 | . 2 . Communications Jammed . | . . . Distress Signals . | . . . Times Spotted 38 | . 23 15 Peak Tracking Total 5 | . 5 2 Tactical Retreats 5 | . 5 . Traps | -11 -10 -10 ------- Run | Yrd Mat Sub Traps Triggered 6 | . 3 3 Indirectly . | . . . Trap Hack Attempts . | . . . Triggered . | . . . Disarmed . | . . . Reprogrammed . | . . . Reused . | . . . Traps Extracted . | . . . Installed . | . . . Triggered . | . . . Machines | -11 -10 -10 ---------- Run | Yrd Mat Sub Machines Disabled 2 | . . 2 Max in Single Turn 1 | . . 1 Machines Repaired . | . . . Machines Dismantled . | . . . Machines Sabotaged . | . . . Overloaded Fab Kills . | . . . Hacking | -11 -10 -10 --------- Run | Yrd Mat Sub Machines Accessed 6 | . 4 2 Terminals 2 | . 2 . Fabricators . | . . . Repair Stations 1 | . 1 . Recycling Units 1 | . 1 . Scanalyzers . | . . . Garrison Access . | . . . Total Hacks 18 | . 7 11 Successful 16 | . 5 11 Failed 2 | . 2 . Catastrophic . | . . . Database Lockouts . | . . . Manual . | . . . Terminals 2 | . 2 . Fabricators . | . . . Repair Stations 4 | . 4 . Recycling Units 1 | . 1 . Scanalyzers . | . . . Garrison Access . | . . . Terminal Hacks 13 | . 2 11 Record 10 | . . 10 Unreport Threat 1 | . 1 . Zone Layout 1 | . 1 . Derelict Proto ID Bank 1 | . . 1 Fabricator Hacks . | . . . Repair Station Hacks 2 | . 2 . Scan Component 1 | . 1 . Repair 1 | . 1 . Recycling Unit Hacks 1 | . 1 . Report Inventory 1 | . 1 . Scanalyzer . | . . . Garrison Access Hacks . | . . . Unauthorized Hacks . | . . . Terminals . | . . . Fabricators . | . . . Repair Stations . | . . . Recycling Units . | . . . Scanalyzers . | . . . Garrison Access . | . . . Data Cores Recovered . | . . . Used . | . . . Hacking Detections . | . . . Full Trace Events . | . . . Feedback Events . | . . . Feedback Blocked . | . . . Robot Schematics Acquired . | . . . Robots Built . | . . . Authchips . | . . . Time . | . . . Total Robot Build Rating . | . . . Part Schematics Acquired . | . . . Parts Built . | . . . Authchips . | . . . Time . | . . . Total Part Build Rating . | . . . Parts Repaired 1 | . 1 . Time 26 | . 26 . Parts Recycled . | . . . Recycled Matter . | . . . Retrieved Matter . | . . . Retrieved Components . | . . . Parts Scanalyzed . | . . . Part Schematics Acquired . | . . . Parts Damaged . | . . . Bothacking | -11 -10 -10 ------------ Run | Yrd Mat Sub Used RIF Installer . | . . . Robots Hacked . | . . . Non-combat . | . . . Combat . | . . . Robot Hacks Applied . | . . . Relay Couplers Released . | . . . Fabnet Peak Effective % . | . . . Robots Rewired . | . . . Allies Hacked . | . . . Hacks Repelled . | . . . Allies | -11 -10 -10 -------- Run | Yrd Mat Sub Total Allies . | . . . Largest Group . | . . . Highest-Rated Group . | . . . Highest-Rated Ally . | . . . Total Orders . | . . . Ally Attacks . | . . . Total Damage . | . . . Kills . | . . . Allies Corrupted . | . . . Allies Melted . | . . . Intel | -11 -10 -10 ------- Run | Yrd Mat Sub Robot Analysis Total . | . . . Derelict Logs Recovered 1 | . . 1 Drone Launches . | . . . Drone Recoveries . | . . . Exploration | -11 -10 -10 ------------- Run | Yrd Mat Sub Turns Passed 4700 | 71 1369 3260 Spaces Moved 2411 | 64 603 1744 Core 7 | 7 . . Treads 64 | . 64 . Legs . | . . . Wheels 2340 | 57 539 1744 Hover . | . . . Flight . | . . . Fastest Speed 50 | 50 90 135 Average Speed 143 | 87 153 141 Slowest Speed 320 | 100 320 195 Overloaded Moves . | . . . Propulsion Burnouts . | . . . Robots Hopped . | . . . Cave-ins Triggered . | . . . Exploration Rate (%) 52 | 4 75 77 Regions Visited 2 Branch Regions 1 Pre-discovered Areas . | . . . Known Exits Taken . | . . . Unknown Exits Taken 2 | 1 1 . Scrap Searched 11 | . . 11 Spaces Dug 17 | . . 17 Terrain Destroyed 195 | . . 195 Melee . | . . . Projectile . | . . . AOE 195 | . . 195 Terrain Rammed . | . . . Walls Destroyed . | . . . Machines Disabled . | . . . Actions | -11 -10 -10 --------- Run | Yrd Mat Sub Total 3372 | 75 983 2314 Wait 715 | . 267 448 Move 2409 | 63 602 1744 Hop . | . . . Pick Up 54 | 6 36 12 Fast Attach 12 | 6 6 . Attach 12 | . 6 6 Detach . | . . . Swap 13 | . 4 9 Drop 24 | . 14 10 Fire 132 | . 47 85 Melee . | . . . Ram . | . . . Kick . | . . . Crush 1 | . 1 . Escape Stasis . | . . . Rewire . | . . . Trap . | . . . Miscellaneous . | . . . Route ------- -11/Scrapyard -10/Materials (discovered 4 exits: [*Mat x2] / [*Min] / *Sub) -10/Subcaves History --------- Turn | Location | Event 17 | -11/Scrapyard | Discovered new exit (range 16) 72 | -11/Scrapyard | Entered Materials 303 | -10/Materials | Build established: Mutant 543 | -10/Materials | Repaired Wheel 762 | -10/Materials | Discovered new exit (range 7) 810 | -10/Materials | Discovered new exit (range 16) 1162 | -10/Materials | Discovered new exit (range 3) 1425 | -10/Materials | Discovered new exit (range 8) 1441 | -10/Materials | Entered Subcaves 1443 | -10/Subcaves | Shifting Twisted Machinery released Mak. System Restoration Module 1449 | -10/Subcaves | Shifting Twisted Machinery released Flamer 1618 | -10/Subcaves | A swath of the cavern ceiling suddenly collapsed 1654 | -10/Subcaves | Shifting Twisted Machinery released Mak. Light Armor Plating 1661 | -10/Subcaves | Shifting Twisted Machinery released Flamer 1710 | -10/Subcaves | Learned location of 1 exit from Materials 1999 | -10/Subcaves | Ambushed by Subdweller buried in earth 2002 | -10/Subcaves | Ambushed by Subdweller buried in earth 2116 | -10/Subcaves | Visited 4L-MR0's lab 2213 | -10/Subcaves | Found Gun Armor 2215 | -10/Subcaves | Attached Gun Armor, gained temporary slots: Weapon x2 2503 | -10/Subcaves | Build established: Gunner 2537 | -10/Subcaves | Disturbed a concealed Subdweller 2549 | -10/Subcaves | Core integrity fell below 50% 2563 | -10/Subcaves | Core integrity fell below 20% 3064 | -10/Subcaves | Visited Clippyterm 4411 | -10/Subcaves | Disturbed a concealed Subdweller 4701 | -10/Subcaves | Destroyed by Y-45 Defender with Beam Rifle Last Messages --------------- 04404_ Searching scrap... 04404_ Found Battle Rifle. 04404_ Found 25 Matter. 04405_ Acquired 25 matter. 04405_ Searching scrap... 04405_ Found Mak. System Restoration Module. 04405_ Found Mak. Light Armor Plating. 04405_ Found 17 Matter. 04406_ Acquired 17 matter. 04411_ 8T-VAR(R) angrily emerges from the Twisted Machinery. 04412_ 8T-VAR(R) knocked back. 04416_ 8T-VAR(R) destroyed. 04591_ IK-F82(R) destroyed. 04591_ 1U-NK7(R) destroyed. 04594_ 1T-Q4R(R) destroyed. 04603_ Dropped Med. Armor Plating. 04605_ Acquired Humpback. 04612_ The unstable cave ceiling collapses. 04693_ Subatomizers dissect the Sub. Laser. Map ----- +----------------------------------------------------+ | ???????????????????????????????????????????????## | | ???????????????????????????????????????????????#" | | ???????????????????????????????????????????????# " | | ???????????????????????????????????????????????#" | | ??????????????????????????????????????????????## | | ?????????????????????????????????????????????## | | ?????????????????????????????????????????????# | | ?????????????????????????????????????????????#"""" | | ?????????????????????????????????????????????##""# | | ??????????????????????????????????????????????###? | | ?????????????????????????????????????????????????? | | ?????????????????????????????????????????????????? | | ?????????????????????????????????????????????????? | | ?????????????????????????????????????????????????? | | ?????????????????????????????????????????????????? | | ?????????????????????????????????????????????????? | | ?????????????????????????????????????????????????? | | ?????????????????????????????????????????????????? | | ?????????????????????????????????????????????????? | | ???????????????????########??????????????????????? | | ??????????????????## &% #??????????????????????? | | ??????????????????# [ ##?????????????????????? | | ??????????????????? Y ##????????????????????? | | ????????????????????? #?????####???????????? | | ??????????????????????? ####### #########???? | | ??????????????????????###@ ## ##??? | | ??????????????????????# ## ##?? | | ??????????????????????# ### ### #?? | | ??????????????????????### #### #?## #?? | | ????????????????????????# #?# ##?#### ##? | | ?????????????????????#### ### ### ##### #? | | ????????????????????## ## #### #? | | ????????????????????# # ## | | ????????????????????## ## # | | ?????????????????????# ### ### # | | ????????????? ??????# #?## ## #?# # | | ?????????## ?????### #??# ##? #?# ## | | ?????????#""""""???????# #?# #??? ###?# ## | | ????????? #?####?# ## ##???#???# # | | ?????????? ## #### ##?????## | | ???????????? ### #????## | | ?????????????# ## ##????# "" | | ??????????????# ########## #?????# "" | | ???????????????# ######### #?????##"" # | | ????????????????# #?????##""#### | | ????????????????# ####????##"" | | ??????###???????# ###??????## "" # # | | ?????## ##??????# ## ##???????## "" ## # | | ????## ##????## ### ##???????## "" | | ????# ##???# ### ##?####??#" "" | | +----------------------------------------------------+ Best States ------------- Heat Dissipation 25 Energy Generation 10 Energy Capacity 250 Matter Stores 500 Matter Capacity 500 Sight Range 16 Terrain Scan Density 10 Armor Coverage 100 Evasion (%) 42 Recoil Reduction 2 Item Schematics ----------------- None Robot Schematics ------------------ None Fabricated ------------ Nothing Alien Tech Used ----------------- None Achievements -------------- None Challenges ------------ None Game ------ Seed BoreThrowingClaw Manual? 0 Play Time 00:31:41 Cumulative 16.4 hours Start 2024.04.17 @ 21:32:51 End 2024.04.17 @ 22:04:01 Sessions 1 Manual Loads 0 Difficulty Rogue Special Mode None Game No. 21 Rogue 20 Adventurer 1 Explorer 0 Win Type - Total 0 Types 0/0/0/0/0/0/0/0/0 Lore% 6 Gallery% 18 Achievement% 18 Wizard Run 0 Options --------- Layout 1 ASCII 0 Keyboard 0 Movement Mouse Keybinds 0 Fullscreen 2 Font 32/Terminus Map View 50x35 Zoom Use 0% Tactical HUD 1 Map Filters NONE Filters NONE Steam 1 RUN: 16ca0236-141a-4a7a-b42a-107c31da4ffd